Workbook

Sheet Лист2
B2: План учебного процесса 35.02.16 Эксплуатация и ремонт сельскохозяйственной техники и оборудования 025ЭР
B3: Индекс | C3: Наименование циклов, дисциплин, профессиональных модулей, МДК, практик | D3: Формы промежуточной аттестации | G3: максимальная учебная нагрузка | H3: Учебная нагрузка обучающихся (час.) | Q3: Распределение учебной нагрузки по курсам и семестрам (час. в семестр)
H4: Самостоятельная учебная работа | I4: всего | Q4: I курс | S4: II курс | U4: III курс | W4: IV курс
D5: Зачеты | E5: Дифференцированные зачеты | F5: Экзамены | J5: в т.ч. по учебным дисциплинам и МДК | M5: По практике учебной | N5: По практике производственной | O5: Консультации | P5: Промежуточная аттестация | Q5: 1 сем. | R5: 2 сем. | S5: 3 сем. | T5: 4 сем. | U5: 5 сем. | V5: 6 сем. | W5: 7 сем. | X5: 8 сем.
Q6: 17 нед. | R6: 24 нед. | S6: 17 нед. | T6: 24 нед. | U6: 17 нед. | V6: 25 нед. | W6: 17 нед. | X6: 24 нед.
J7: теоретического обучения | K7: лаб. и практ. занятий | L7: курсовых работ (проектов) | Q7: (17 нед. т/о+ПА) | R7: (24 нед. т/о+ ПА) | S7: (17 нед. т/о) | T7: (18 нед. т/о+4 нед. УП+2 нед. ПП+ПА) | U7: (14 нед. т/о+2 нед. УП+ 1 нед. ПП+ПА) | V7: (17 нед. т/о+4 нед. УП+4 нед. ПП+ПА) | W7: (13 нед. т/о+2 нед. УП+2 нед. ПП+ПА) | X7: (8нед. т/о+3 нед. УП+3нед. ПП+4 нед. ПДП+ПА+6 нед. ГИА)
B8: 1 | C8: 2 | D8: 3 | E8: 4 | F8: 5 | G8: 6 | H8: 7 | I8: 8 | J8: 9 | K8: 10 | L8: 11 | M8: 12 | N8: 13 | O8: 14 | P8: 15 | Q8: 16 | R8: 17 | S8: 18 | T8: 19 | U8: 20 | V8: 21 | W8: 22 | X8: 23
B9: ОУД.00 | C9: Общеобразовательные учебные дисциплины | D9: =COUNTA(D10:D25) -> 1 | E9: =COUNTA(E10:E25) -> 9 | F9: =COUNTA(F10:F25) -> 6 | G9: =SUM(G10:G25) -> 1476 | H9: =SUM(H10:H25) -> 0 | I9: =J9+K9+L9+M9+N9+O9+P9 -> 1476 | J9: =SUM(J10:J25) -> 567 | K9: =SUM(K10:K25) -> 853 | L9: =SUM(L10:L25) -> 0 | M9: =SUM(M10:M25) -> 0 | N9: =SUM(N10:N25) -> 0 | O9: =SUM(O10:O25) -> 8 | P9: =SUM(P10:P25) -> 48 | Q9: =SUM(Q10:Q25) -> 612 | R9: =SUM(R10:R25) -> 864 | S9: =SUM(S10:S25) -> 0 | T9: =SUM(T10:T25) -> 0 | U9: =SUM(U10:U25) -> 0 | V9: =SUM(V10:V25) -> 0 | W9: =SUM(W10:W25) -> 0 | X9: =SUM(X10:X25) -> 0 | Y9: =SUM(Q9:X9) -> 1476
B10: ОУД.01 | C10: Русский язык | F10: 1 | G10: =H10+I10 -> 84 | H10: 0 | I10: =J10+K10+L10+M10+N10+O10+P10 -> 84 | J10: 34 | K10: 42 | L10: 0 | M10: 0 | N10: 0 | O10: 2 | P10: 6 | Q10: 84 | R10: 0 | S10: 0 | T10: 0 | U10: 0 | V10: 0 | W10: 0 | X10: 0 | Y10: =SUM(Q10:X10) -> 84
B11: ОУД.02 | C11: Литература | E11: 2 | G11: 114 | H11: 0 | I11: =J11+K11+L11+M11+N11+O11+P11 -> 114 | J11: 40 | K11: 72 | L11: 0 | M11: 0 | N11: 0 | O11: 0 | P11: 2 | Q11: 48 | R11: 66 | S11: 0 | T11: 0 | U11: 0 | V11: 0 | W11: 0 | X11: 0 | Y11: =SUM(Q11:X11) -> 114
B12: ОУД 03 | C12: Математика | F12: 2 | G12: 232 | H12: 0 | I12: =J12+K12+L12+M12+N12+O12+P12 -> 232 | J12: 70 | K12: 154 | L12: 0 | M12: 0 | N12: 0 | O12: 2 | P12: 6 | Q12: 122 | R12: 110 | S12: 0 | T12: 0 | U12: 0 | V12: 0 | W12: 0 | X12: 0 | Y12: =SUM(Q12:X12) -> 232
B13: ОУД.04 | C13: Иностранный язык | E13: 2 | G13: 180 | H13: 0 | I13: =J13+K13+L13+M13+N13+O13+P13 -> 180 | J13: 58 | K13: 120 | L13: 0 | M13: 0 | N13: 0 | O13: 0 | P13: 2 | Q13: 60 | R13: 120 | S13: 0 | T13: 0 | U13: 0 | V13: 0 | W13: 0 | X13: 0 | Y13: =SUM(Q13:X13) -> 180
B14: ОУД.05 | C14: Информатика | E14: 2 | G14: 108 | H14: 0 | I14: =J14+K14+L14+M14+N14+O14+P14 -> 108 | J14: 26 | K14: 80 | L14: 0 | M14: 0 | N14: 0 | O14: 0 | P14: 2 | Q14: 30 | R14: 78 | S14: 0 | T14: 0 | U14: 0 | V14: 0 | W14: 0 | X14: 0 | Y14: =SUM(Q14:X14) -> 108
B15: ОУД.06 | C15: Физика | F15: 2 | G15: 100 | H15: 0 | I15: =J15+K15+L15+M15+N15+O15+P15 -> 100 | J15: 36 | K15: 56 | L15: 0 | M15: 0 | N15: 0 | O15: 2 | P15: 6 | Q15: 60 | R15: 40 | S15: 0 | T15: 0 | U15: 0 | V15: 0 | W15: 0 | X15: 0 | Y15: =SUM(Q15:X15) -> 100
B16: ОУД.07 | C16: Химия | F16: 2 | G16: 78 | H16: 0 | I16: =J16+K16+L16+M16+N16+O16+P16 -> 78 | J16: 48 | K16: 28 | L16: 0 | M16: 0 | N16: 0 | O16: 0 | P16: 2 | Q16: 34 | R16: 44 | S16: 0 | T16: 0 | U16: 0 | V16: 0 | W16: 0 | X16: 0 | Y16: =SUM(Q16:X16) -> 78
B17: ОУД.08 | C17: Биология | F17: 2 | G17: 72 | H17: 0 | I17: =J17+K17+L17+M17+N17+O17+P17 -> 72 | J17: 42 | K17: 22 | L17: 0 | M17: 0 | N17: 0 | O17: 2 | P17: 6 | Q17: 48 | R17: 24 | S17: 0 | T17: 0 | U17: 0 | V17: 0 | W17: 0 | X17: 0 | Y17: =SUM(Q17:X17) -> 72
B18: ОУД.09 | C18: История | E18: 2 | G18: 136 | H18: 0 | I18: =J18+K18+L18+M18+N18+O18+P18 -> 136 | J18: 62 | K18: 72 | L18: 0 | M18: 0 | N18: 0 | O18: 0 | P18: 2 | Q18: 40 | R18: 96 | S18: 0 | T18: 0 | U18: 0 | V18: 0 | W18: 0 | X18: 0 | Y18: =SUM(Q18:X18) -> 136
B19: ОУД.10 | C19: Обществознание | E19: 2 | G19: 72 | H19: 0 | I19: =J19+K19+L19+M19+N19+O19+P19 -> 72 | J19: 50 | K19: 20 | L19: 0 | M19: 0 | N19: 0 | O19: 0 | P19: 2 | R19: 72 | S19: 0 | T19: 0 | U19: 0 | V19: 0 | W19: 0 | X19: 0 | Y19: =SUM(Q19:X19) -> 72
B20: ОУД 11 | C20: География | E20: 2 | G20: 36 | H20: 0 | I20: =J20+K20+L20+M20+N20+O20+P20 -> 36 | J20: 22 | K20: 12 | L20: 0 | O20: 0 | P20: 2 | R20: 36 | Y20: =SUM(Q20:X20) -> 36
B21: ОУД.12 | C21: Физическая культура | D21: 2 | G21: 72 | H21: 0 | I21: =J21+K21+L21+M21+N21+O21+P21 -> 72 | J21: 7 | K21: 63 | L21: 0 | M21: 0 | N21: 0 | O21: 0 | P21: 2 | Q21: 35 | R21: 37 | S21: 0 | T21: 0 | U21: 0 | V21: 0 | W21: 0 | X21: 0 | Y21: =SUM(Q21:X21) -> 72
B22: ОУД.13 | C22: Основы безопасности и защиты Родины | F22: 2 | G22: 80 | H22: 0 | I22: =J22+K22+L22+M22+N22+O22+P22 -> 80 | J22: 38 | K22: 40 | L22: =SUM(L23:L24) -> 0 | M22: =SUM(M23:M24) -> 0 | N22: =SUM(N23:N24) -> 0 | O22: 0 | P22: 2 | R22: 80 | S22: 0 | T22: 0 | U22: 0 | V22: 0 | W22: 0 | X22: 0 | Y22: =SUM(Q22:X22) -> 80
B23: ОУД.14 | C23: Родная литература | E23: 2 | G23: 40 | H23: 0 | I23: =J23+K23+L23+M23+N23+O23+P23 -> 40 | J23: 10 | K23: 28 | L23: 0 | M23: 0 | N23: 0 | O23: 0 | P23: 2 | Q23: 15 | R23: 25 | S23: 0 | T23: 0 | U23: 0 | V23: 0 | W23: 0 | X23: 0 | Y23: =SUM(Q23:X23) -> 40
B24: ОУД.15 | C24: Родной язык | E24: 1 | G24: 36 | H24: 0 | I24: =J24+K24+L24+M24+N24+O24+P24 -> 36 | J24: 10 | K24: 24 | L24: 0 | M24: 0 | N24: 0 | O24: 0 | P24: 2 | Q24: 36 | S24: 0 | T24: 0 | U24: 0 | V24: 0 | W24: 0 | X24: 0 | Y24: =SUM(Q24:X24) -> 36
B25: ОУД.16 | C25: Индивидуальный проект | E25: 2 | G25: 36 | H25: 0 | I25: =J25+K25+L25+M25+N25+O25+P25 -> 36 | J25: 14 | K25: 20 | L25: 0 | M25: 0 | N25: 0 | O25: 0 | P25: 2 | R25: 36 | S25: 0 | T25: 0 | U25: 0 | V25: 0 | W25: 0 | X25: 0 | Y25: =SUM(Q25:X25) -> 36
B26: СГ 00 | C26: Социально-гуманитарный цикл | D26: 4 | E26: =COUNTA(E27:E33) -> 4 | F26: =COUNTA(F27:F33) -> 3 | G26: =SUM(G27:G33) -> 496 | H26: =SUM(H27:H33) -> 2 | I26: =SUM(I27:I33) -> 494 | J26: =SUM(J27:J33) -> 194 | K26: =SUM(K27:K33) -> 282 | L26: =SUM(L27:L33) -> 0 | M26: =SUM(M27:M33) -> 0 | N26: =SUM(N27:N33) -> 0 | O26: =SUM(O27:O33) -> 2 | P26: =SUM(P27:P33) -> 16 | Q26: =SUM(Q27:Q33) -> 0 | R26: =SUM(R27:R33) -> 0 | S26: =SUM(S27:S33) -> 82 | T26: =SUM(T27:T33) -> 26 | U26: =SUM(U27:U33) -> 132 | V26: =SUM(V27:V33) -> 152 | W26: =SUM(W27:W33) -> 104 | X26: =SUM(X27:X33) -> 0 | Y26: =SUM(Q26:X26) -> 496
B27: СГ.01 | C27: История России | E27: 3 | G27: =H27+I27 -> 56 | I27: =J27+K27+L27+M27+N27+O27+P27 -> 56 | J27: 34 | K27: 20 | L27: 0 | M27: 0 | N27: 0 | O27: 0 | P27: 2 | Q27: 0 | R27: 0 | S27: 56 | T27: 0 | U27: 0 | V27: 0 | W27: 0 | X27: 0 | Y27: =SUM(Q27:X27) -> 56
B28: СГ.02 | C28: Иностранный язык в профессиональной деятельности | F28: 6 | G28: =H28+I28 -> 64 | H28: 0 | I28: =J28+K28+L28+M28+N28+O28+P28 -> 64 | J28: 30 | K28: 32 | L28: 0 | M28: 0 | N28: 0 | O28: 0 | P28: 2 | Q28: 0 | R28: 0 | S28: 0 | T28: 0 | U28: 64 | V28: 0 | W28: 0 | X28: 0 | Y28: =SUM(Q28:X28) -> 64
B29: СГ.03 | C29: Физическая культура | D29: 3,4,5,6 | E29: 7 | G29: =H29+I29 -> 166 | H29: 0 | I29: =J29+K29+L29+M29+N29+O29+P29 -> 166 | J29: 26 | K29: 138 | L29: 0 | M29: 0 | N29: 0 | O29: 0 | P29: 2 | Q29: 0 | R29: 0 | S29: 26 | T29: 26 | U29: 32 | V29: 14 | W29: 68 | X29: 0 | Y29: =SUM(Q29:X29) -> 166
B30: СГ.04 | C30: Безопасность жизнедеятельности | E30: 6 | G30: =H30+I30 -> 80 | H30: 0 | I30: =J30+K30+L30+M30+N30+O30+P30 -> 80 | J30: 38 | K30: 40 | L30: 0 | M30: 0 | N30: 0 | O30: 0 | P30: 2 | Q30: 0 | R30: 0 | S30: 0 | T30: 0 | U30: 0 | V30: 80 | W30: 0 | X30: 0 | Y30: =SUM(Q30:X30) -> 80
B31: СГ.05 | C31: Психология общения | E31: 6 | G31: =H31+I31 -> 58 | H31: 0 | I31: =J31+K31+L31+M31+N31+O31+P31 -> 58 | J31: 28 | K31: 28 | L31: 0 | M31: 0 | N31: 0 | O31: 0 | P31: 2 | Q31: 0 | R31: 0 | S31: 0 | T31: 0 | U31: 0 | V31: 58 | W31: 0 | X31: 0 | Y31: =SUM(Q31:X31) -> 58
B32: СГ.06 | C32: Основы финансовой грамотности | F32: 7 | G32: =H32+I32 -> 36 | I32: =J32+K32+L32+M32+N32+O32+P32 -> 36 | J32: 20 | K32: 10 | L32: 0 | M32: 0 | N32: 0 | O32: 2 | P32: 4 | Q32: 0 | R32: 0 | S32: 0 | T32: 0 | U32: 0 | V32: 0 | W32: 36 | X32: 0 | Y32: =SUM(Q32:X32) -> 36
B33: СГ.07 | C33: Основы бережливого производства | F33: 5 | G33: =H33+I33 -> 36 | H33: 2 | I33: =J33+K33+L33+M33+N33+O33+P33 -> 34 | J33: 18 | K33: 14 | L33: 0 | M33: 0 | N33: 0 | O33: 0 | P33: 2 | Q33: 0 | R33: 0 | S33: 0 | T33: 0 | U33: 36 | V33: 0 | W33: 0 | X33: 0 | Y33: =SUM(Q33:X33) -> 36
B34: ОП.00 | C34: Общепрофессиональный цикл | D34: =COUNTA(D35:D47) -> 0 | E34: =COUNTA(E35:E47) -> 8 | F34: =COUNTA(F35:F47) -> 5 | G34: =SUM(G35:G47) -> 1004 | H34: =SUM(H35:H47) -> 22 | I34: =J34+K34+L34+M34+N34+O34+P34 -> 982 | J34: =SUM(J35:J47) -> 526 | K34: =SUM(K35:K47) -> 414 | L34: =SUM(L35:L47) -> 0 | M34: =SUM(M35:M47) -> 0 | N34: =SUM(N35:N47) -> 0 | O34: =SUM(O35:O47) -> 8 | P34: =SUM(P35:P47) -> 34 | Q34: =SUM(Q35:Q47) -> 0 | R34: =SUM(R35:R47) -> 0 | S34: =SUM(S35:S47) -> 136 | T34: =SUM(T35:T47) -> 216 | U34: =SUM(U35:U47) -> 216 | V34: =SUM(V35:V47) -> 72 | W34: =SUM(W35:W47) -> 226 | X34: =SUM(X35:X47) -> 138 | Y34: =SUM(Q34:X34) -> 1004
B35: ОП 01 | C35: Математические методы решения прикладных профессиональных задач | E35: 7 | G35: =H35+I35 -> 120 | H35: 10 | I35: =J35+K35+L35+M35+N35+O35+P35 -> 110 | J35: 64 | K35: 44 | L35: 0 | M35: 0 | N35: 0 | O35: 0 | P35: 2 | Q35: 0 | R35: 0 | U35: 0 | V35: 0 | W35: 120 | X35: 0 | Y35: =SUM(Q35:X35) -> 120
B36: ОП.02 | C36: Экологические основы природопользования | E36: 7 | G36: =H36+I36 -> 58 | H36: 0 | I36: =J36+K36+L36+M36+N36+O36+P36 -> 58 | J36: 38 | K36: 18 | L36: 0 | M36: 0 | N36: 0 | O36: 0 | P36: 2 | Q36: 0 | R36: 0 | S36: 0 | T36: 0 | U36: 0 | V36: 0 | W36: 58 | X36: 0 | Y36: =SUM(Q36:X36) -> 58
B37: ОП.03 | C37: Информационные технологии в профессиональной деятельности | E37: 8 | G37: =H37+I37 -> 84 | H37: 0 | I37: =J37+K37+L37+M37+N37+O37+P37 -> 84 | J37: 30 | K37: 52 | L37: 0 | M37: 0 | N37: 0 | O37: 0 | P37: 2 | Q37: 0 | R37: 0 | S37: 0 | T37: 0 | U37: 0 | V37: 0 | W37: 48 | X37: 36 | Y37: =SUM(Q37:X37) -> 84
B38: ОП.04 | C38: Инженерная графика | F38: 6 | G38: =H38+I38 -> 76 | H38: 0 | I38: =J38+K38+L38+M38+N38+O38+P38 -> 76 | J38: 0 | K38: 74 | L38: 0 | M38: 0 | N38: 0 | O38: 0 | P38: 2 | Q38: 0 | R38: 0 | T38: 0 | U38: 72 | V38: 0 | W38: 0 | X38: 0 | Y38: =SUM(Q38:X38) -> 72
B39: ОП.05 | C39: Техническая механика | F39: 4 | G39: =H39+I39 -> 142 | H39: 12 | I39: =J39+K39+L39+M39+N39+O39+P39 -> 130 | J39: 70 | K39: 50 | L39: 0 | M39: 0 | N39: 0 | O39: 4 | P39: 6 | Q39: 0 | R39: 0 | S39: 24 | T39: 118 | U39: 0 | W39: 0 | X39: 0 | Y39: =SUM(Q39:X39) -> 142
B40: ОП.06 | C40: Материаловедение | F40: 4 | G40: =H40+I40 -> 72 | H40: 0 | I40: =J40+K40+L40+M40+N40+O40+P40 -> 72 | J40: 32 | K40: 30 | L40: 0 | M40: 0 | N40: 0 | O40: 4 | P40: 6 | Q40: 0 | R40: 0 | S40: 0 | T40: 72 | U40: 0 | V40: 0 | W40: 0 | X40: 0 | Y40: =SUM(Q40:X40) -> 72
B41: ОП.07 | C41: Электротехника и электроника | E41: 4 | G41: =H41+I41 -> 62 | H41: 0 | I41: =J41+K41+L41+M41+N41+O41+P41 -> 62 | J41: 30 | K41: 30 | L41: 0 | M41: 0 | N41: 0 | O41: 0 | P41: 2 | Q41: 0 | R41: 0 | S41: 36 | T41: 26 | U41: 0 | V41: 0 | W41: 0 | X41: 0 | Y41: =SUM(Q41:X41) -> 62
B42: ОП.08 | C42: Основы гидравлики и теплотехники | E42: 5 | G42: =H42+I42 -> 72 | H42: 0 | I42: =J42+K42+L42+M42+N42+O42+P42 -> 72 | J42: 48 | K42: 22 | L42: 0 | M42: 0 | N42: 0 | O42: 0 | P42: 2 | Q42: 0 | R42: 0 | S42: 76 | T42: 0 | V42: 0 | W42: 0 | X42: 0 | Y42: =SUM(Q42:X42) -> 76
B43: ОП.09 | C43: Основы агрономии | F43: 5 | G43: =H43+I43 -> 72 | H43: 0 | I43: =J43+K43+L43+M43+N43+O43+P43 -> 72 | J43: 48 | K43: 22 | L43: 0 | M43: 0 | N43: 0 | O43: 0 | P43: 2 | Q43: 0 | R43: 0 | S43: 0 | T43: 0 | U43: 72 | V43: 0 | W43: 0 | X43: 0 | Y43: =SUM(Q43:X43) -> 72
B44: ОП.10 | C44: Основы зоотехнии | E44: 6 | G44: =H44+I44 -> 72 | H44: 0 | I44: =J44+K44+L44+M44+N44+O44+P44 -> 72 | J44: 40 | K44: 30 | L44: 0 | M44: 0 | N44: 0 | O44: 0 | P44: 2 | Q44: 0 | R44: 0 | S44: 0 | T44: 0 | V44: 72 | W44: 0 | X44: 0 | Y44: =SUM(Q44:X44) -> 72
B45: ОП.11 | C45: Основы взаимозаменяемости и технические измерения | F45: 5 | G45: =H45+I45 -> 72 | H45: 0 | I45: =J45+K45+L45+M45+N45+O45+P45 -> 72 | J45: 48 | K45: 22 | L45: 0 | M45: 0 | N45: 0 | O45: 0 | P45: 2 | Q45: 0 | R45: 0 | S45: 0 | U45: 72 | V45: 0 | W45: 0 | X45: 0 | Y45: =SUM(Q45:X45) -> 72
B46: ОП.12 | C46: Основы экономики, менеджмента и маркетинга | E46: 8 | G46: =H46+I46 -> 52 | H46: 0 | I46: =J46+K46+L46+M46+N46+O46+P46 -> 52 | J46: 40 | K46: 10 | L46: 0 | M46: 0 | N46: 0 | O46: 0 | P46: 2 | Q46: 0 | R46: 0 | S46: 0 | T46: 0 | U46: 0 | V46: 0 | W46: 0 | X46: 52 | Y46: =SUM(Q46:X46) -> 52
B47: ОП.13 | C47: Правовые основы профессиональной деятельности и охрана труда | E47: 8 | G47: =H47+I47 -> 50 | H47: 0 | I47: =J47+K47+L47+M47+N47+O47+P47 -> 50 | J47: 38 | K47: 10 | L47: 0 | M47: 0 | N47: 0 | O47: 0 | P47: 2 | Q47: 0 | R47: 0 | S47: 0 | T47: 0 | U47: 0 | V47: 0 | W47: 0 | X47: 50 | Y47: =SUM(Q47:X47) -> 50
B48: П.00 | C48: Профессиональный цикл | D48: =D49+D55+D60+D66+D71+D76+D77 -> 0 | E48: =E49+E55+E60+E66+E71+E76+E77 -> 12 | F48: =F49+F55+F60+F66+F71+F76+F77 -> 5 | G48: =G49+G55+G60+G66+G71+G76+G77 -> 2964 | H48: =H49+H55+H60+H66+H71+H76+H77 -> 50 | I48: =I49+I55+I60+I66+I71+I76+I77 -> 2914 | J48: =J49+J55+J60+J66+J71+J76+J77 -> 828 | K48: =K49+K55+K60+K66+K71+K76+K77 -> 580 | L48: =L49+L55+L60+L66+L71+L76+L77 -> 40 | M48: =M49+M55+M60+M66+M71+M76+M77 -> 504 | N48: =N49+N55+N60+N66+N71+N76+N77 -> 648 | O48: =O49+O55+O60+O66+O71+O76+O77 -> 36 | P48: =P49+P55+P60+P66+P71+P76+P77 -> 278 | Q48: =Q49+Q55+Q60+Q66+Q71+Q76+Q77 -> 0 | R48: =R49+R55+R60+R66+R71+R76+R77 -> 0 | S48: =S49+S55+S60+S66+S71+S76+S77 -> 394 | T48: =T49+T55+T60+T66+T71+T76+T77 -> 622 | U48: =U49+U55+U60+U66+U71+U76+U77 -> 264 | V48: =V49+V55+V60+V66+V71+V76+V77 -> 640 | W48: =W49+W55+W60+W66+W71+W76+W77 -> 282 | X48: =X49+X55+X60+X66+X71+X76+X77 -> 762 | Y48: =SUM(Q48:X48) -> 2964
B49: ПМ.01 | C49: Подготовка машин, механизмов, установок, приспособлений к работе, комплектование сборочных единиц | D49: =COUNTA(D50:D54) -> 0 | E49: =COUNTA(E50:E54) -> 3 | F49: =COUNTA(F50:F54) -> 1 | G49: =H49+I49 -> 1006 | H49: 0 | I49: =SUM(I50:I54) -> 1006 | J49: =SUM(J50:J54) -> 340 | K49: =SUM(K50:K54) -> 276 | L49: =SUM(L50:L54) -> 0 | M49: =SUM(M50:M54) -> 144 | N49: =SUM(N50:N54) -> 216 | O49: =SUM(O50:O54) -> 10 | P49: =SUM(P50:P54) -> 20 | Q49: =SUM(Q50:Q54) -> 0 | R49: =SUM(R50:R54) -> 0 | S49: =SUM(S50:S54) -> 394 | T49: =SUM(T50:T54) -> 622 | U49: =SUM(U50:U54) -> 0 | V49: =SUM(V50:V54) -> 0 | W49: =SUM(W50:W54) -> 0 | X49: =SUM(X50:X54) -> 0 | Y49: =SUM(Q49:X49) -> 1016
B50: МДК. 01.01 | C50: Назначение и общее устройство тракторов, автомобилей и сельскохозяйственных машин | E50: 4 | G50: =H50+I50 -> 528 | H50: 10 | I50: =J50+K50+L50+M50+N50+O50+P50 -> 518 | J50: 278 | K50: 230 | L50: 0 | M50: 0 | N50: 0 | O50: 4 | P50: 6 | Q50: 0 | R50: 0 | S50: 256 | T50: 272 | U50: 0 | V50: 0 | W50: 0 | X50: 0 | Y50: =SUM(Q50:X50) -> 528
B51: МДК. 01.02 | C51: Подготовка тракторов и сельскохозяйственных машин и механизмов к работе | E51: 4 | G51: =H51+I51 -> 110 | I51: =J51+K51+L51+M51+N51+O51+P51 -> 110 | J51: 62 | K51: 46 | L51: 0 | M51: 0 | N51: 0 | O51: 0 | P51: 2 | Q51: 0 | R51: 0 | S51: 66 | T51: 44 | W51: 0 | X51: 0 | Y51: =SUM(Q51:X51) -> 110
B52: УП.01 | C52: Учебная практика | E52: 4 | G52: =H52+I52 -> 144 | H52: 0 | I52: =J52+K52+L52+M52+N52+O52+P52 -> 144 | J52: 0 | K52: 0 | L52: 0 | M52: 144 | N52: 0 | O52: 0 | P52: 0 | Q52: 0 | R52: 0 | S52: 72 | T52: 72 | W52: 0 | X52: 0 | Y52: =SUM(Q52:X52) -> 144
B53: ПП.01 | C53: Производственная практика | G53: =H53+I53 -> 216 | H53: 0 | I53: =J53+K53+L53+M53+N53+O53+P53 -> 216 | J53: 0 | K53: 0 | L53: 0 | M53: 0 | N53: 216 | O53: 0 | P53: 0 | Q53: 0 | R53: 0 | S53: 0 | T53: 216 | W53: 0 | X53: 0 | Y53: =SUM(Q53:X53) -> 216
B54: ПМ.01.Э | C54: Экзамен по модулю | F54: 4 | G54: =H54+I54 -> 18 | I54: =J54+K54+L54+M54+N54+O54+P54 -> 18 | O54: 6 | P54: 12 | T54: 18 | Y54: =SUM(Q54:X54) -> 18
B55: ПМ.02 | C55: Эксплуатация сельскохозяйственной техники | D55: 0 | E55: 2 | F55: 1 | G55: =H55+I55 -> 428 | H55: =SUM(H56:H59) -> 10 | I55: =SUM(I56:I59) -> 418 | J55: =SUM(J56:J59) -> 110 | K55: =SUM(K56:K59) -> 84 | L55: =SUM(L56:L59) -> 20 | M55: =SUM(M56:M59) -> 72 | N55: =SUM(N56:N59) -> 108 | O55: =SUM(O56:O59) -> 12 | P55: =SUM(P56:P59) -> 12 | Q55: =SUM(Q56:Q59) -> 0 | R55: =SUM(R56:R59) -> 0 | S55: =SUM(S56:S59) -> 0 | T55: =SUM(T56:T59) -> 0 | U55: =SUM(U56:U59) -> 98 | V55: =SUM(V56:V59) -> 330 | W55: =SUM(W56:W59) -> 0 | X55: =SUM(X56:X59) -> 0 | Y55: =SUM(Q55:X55) -> 428
B56: МДК. 02.01 | C56: Комплектование машинно-тракторного агрегата для выполнения сельскохозяйственных работ | E56: 6 | G56: =H56+I56 -> 236 | H56: 10 | I56: =J56+K56+L56+M56+N56+O56+P56 -> 226 | J56: 110 | K56: 84 | L56: 20 | M56: 0 | N56: 0 | O56: 6 | P56: 6 | Q56: 0 | R56: 0 | S56: 0 | T56: 0 | U56: 98 | V56: 138 | W56: 0 | X56: 0 | Y56: =SUM(Q56:X56) -> 236
B57: УП.02 | C57: Учебная практика | E57: 6 | G57: =H57+I57 -> 72 | H57: 0 | I57: =J57+K57+L57+M57+N57+O57+P57 -> 72 | J57: 0 | K57: 0 | L57: 0 | M57: 72 | N57: 0 | O57: 0 | P57: 0 | Q57: 0 | R57: 0 | S57: 0 | T57: 0 | U57: 0 | V57: 72 | W57: 0 | X57: 0 | Y57: =SUM(Q57:X57) -> 72
B58: ПП.02 | C58: Производственная практика | G58: =H58+I58 -> 108 | H58: 0 | I58: =J58+K58+L58+M58+N58+O58+P58 -> 108 | J58: 0 | K58: 0 | L58: 0 | M58: 0 | N58: 108 | O58: 0 | P58: 0 | Q58: 0 | R58: 0 | S58: 0 | T58: 0 | U58: 0 | V58: 108 | W58: 0 | X58: 0 | Y58: =SUM(Q58:X58) -> 108
B59: ПМ.02.Э | C59: Экзамен по модулю | F59: 6 | G59: =H59+I59 -> 12 | I59: =J59+K59+L59+M59+N59+O59+P59 -> 12 | O59: 6 | P59: 6 | V59: 12 | W59: 0 | X59: 0 | Y59: =SUM(Q59:X59) -> 12
B60: ПМ.03 | C60: Ремонт сельскохозяйственной техники и оборудования | D60: 0 | E60: 3 | F60: 1 | G60: =H60+I60 -> 694 | H60: =SUM(H61:H65) -> 10 | I60: =SUM(I61:I65) -> 684 | J60: =SUM(J61:J65) -> 186 | K60: =SUM(K61:K65) -> 134 | L60: =SUM(L61:L65) -> 20 | M60: =SUM(M61:M65) -> 180 | N60: =SUM(N61:N65) -> 144 | O60: =SUM(O61:O65) -> 6 | P60: =SUM(P61:P65) -> 14 | Q60: =SUM(Q61:Q65) -> 0 | R60: =SUM(R61:R65) -> 0 | S60: =SUM(S61:S65) -> 0 | T60: =SUM(T61:T65) -> 0 | U60: =SUM(U61:U65) -> 0 | V60: =SUM(V61:V65) -> 0 | W60: =SUM(W61:W65) -> 282 | X60: =SUM(X61:X65) -> 402 | Y60: =SUM(Q60:X60) -> 684
B61: МДК. 03.01 | C61: Система технического обслуживания и ремонта сельскохозяйственных машин и механизмов | E61: 8 | G61: =H61+I61 -> 214 | H61: 10 | I61: =J61+K61+L61+M61+N61+O61+P61 -> 204 | J61: 102 | K61: 76 | L61: 20 | M61: 0 | N61: 0 | O61: 0 | P61: 6 | Q61: 0 | R61: 0 | S61: 0 | T61: 0 | U61: 0 | V61: 0 | W61: 114 | X61: 90 | Y61: =SUM(Q61:X61) -> 204 | Z61: 296
B62: МДК. 03.02 | C62: Технологические процессы ремонтного производства | E62: 8 | G62: =H62+I62 -> 144 | H62: 0 | I62: =J62+K62+L62+M62+N62+O62+P62 -> 144 | J62: 84 | K62: 58 | L62: 0 | M62: 0 | N62: 0 | O62: 0 | P62: 2 | Q62: 0 | R62: 0 | S62: 0 | T62: 0 | U62: 0 | V62: 0 | W62: 96 | X62: 48 | Y62: =SUM(Q62:X62) -> 144 | Z62: 144
B63: УП.03 | C63: Учебная практика | E63: 8 | G63: =H63+I63 -> 180 | H63: 0 | I63: =J63+K63+L63+M63+N63+O63+P63 -> 180 | J63: 0 | K63: 0 | L63: 0 | M63: 180 | N63: 0 | O63: 0 | P63: 0 | Q63: 0 | R63: 0 | S63: 0 | T63: 0 | U63: 0 | V63: 0 | W63: 72 | X63: 108 | Y63: =SUM(Q63:X63) -> 180
B64: ПП.03 | C64: Производственная практика | G64: =H64+I64 -> 144 | H64: 0 | I64: =J64+K64+L64+M64+N64+O64+P64 -> 144 | J64: 0 | K64: 0 | L64: 0 | M64: 0 | N64: 144 | O64: 0 | P64: 0 | Q64: 0 | R64: 0 | S64: 0 | T64: 0 | U64: 0 | V64: 0 | W64: 0 | X64: 144 | Y64: =SUM(Q64:X64) -> 144
B65: ПМ.03.Э | C65: Экзамен по модулю | F65: 8 | G65: =H65+I65 -> 12 | I65: =J65+K65+L65+M65+N65+O65+P65 -> 12 | O65: 6 | P65: 6 | X65: 12 | Y65: =SUM(Q65:X65) -> 12
B66: ПМ.04 | C66: Освоение одной или нескольких профессий рабочих или должностей служащих | D66: 0 | E66: 2 | F66: 1 | G66: =H66+I66 -> 296 | H66: =SUM(H67,H68,H69,H70) -> 24 | I66: =SUM(I67,I68,I69,I70) -> 272 | J66: =SUM(J67,J68,J69,J70) -> 122 | K66: =SUM(K67,K68,K69,K70) -> 48 | L66: =SUM(L67,L68,L69,L70) -> 0 | M66: =SUM(M67,M68,M69,M70) -> 72 | N66: =SUM(N67,N68,N69,N70) -> 18 | O66: =SUM(O67,O68,O69,O70) -> 4 | P66: =SUM(P67,P68,P69,P70) -> 8 | Q66: =SUM(Q67,Q68,Q69,Q70) -> 0 | R66: =SUM(R67,R68,R69,R70) -> 0 | S66: =SUM(S67,S68,S69,S70) -> 0 | T66: =SUM(T67,T68,T69,T70) -> 0 | U66: =SUM(U67,U68,U69,U70) -> 114 | V66: =SUM(V67,V68,V69,V70) -> 182 | W66: =SUM(W67,W68,W69,W70) -> 0 | X66: =SUM(X67,X68,X69,X70) -> 0 | Y66: =SUM(Q66:X66) -> 296
B67: МДК. 04.01 | C67: Освоение профессии рабочих 11442 Водитель автомобиля, категория "С" | E67: 6 | G67: =H67+I67 -> 196 | H67: 24 | I67: =J67+K67+L67+M67+N67+O67+P67 -> 172 | J67: 122 | K67: 48 | L67: 0 | M67: 0 | N67: 0 | O67: 0 | P67: 2 | Q67: 0 | R67: 0 | S67: 0 | T67: 0 | U67: 114 | V67: 82 | W67: 0 | X67: 0 | Y67: =SUM(Q67:X67) -> 196 | Z67: 170
B68: УП.04 | C68: Учебная практика | E68: 6 | G68: =H68+I68 -> 72 | H68: 0 | I68: =J68+K68+L68+M68+N68+O68+P68 -> 72 | J68: 0 | K68: 0 | L68: 0 | M68: 72 | N68: 0 | O68: 0 | P68: 0 | Q68: 0 | R68: 0 | S68: 0 | T68: 0 | U68: 0 | V68: 72 | W68: 0 | X68: 0 | Y68: =SUM(Q68:X68) -> 72 | Z68: 72
B69: ПП.04 | C69: Производственная практика | G69: =H69+I69 -> 18 | H69: 0 | I69: =J69+K69+L69+M69+N69+O69+P69 -> 18 | J69: 0 | K69: 0 | L69: 0 | M69: 0 | N69: 18 | O69: 0 | P69: 0 | Q69: 0 | R69: 0 | S69: 0 | T69: 0 | U69: 0 | V69: 18 | W69: 0 | X69: 0 | Y69: =SUM(Q69:X69) -> 18 | Z69: 18
B70: ПМ.04.ЭК | C70: Квалификационный экзамен | F70: 6 | G70: =H70+I70 -> 10 | I70: =J70+K70+L70+M70+N70+O70+P70 -> 10 | O70: 4 | P70: 6 | V70: 10 | Y70: =SUM(Q70:X70) -> 10
B71: ПМ.05 | C71: Освоение одной или нескольких профессий рабочих или должностей служащих | D71: 0 | E71: 2 | F71: 1 | G71: =H71+I71 -> 180 | H71: =SUM(H72:H75) -> 6 | I71: =J71+K71+L71+M71+N71+O71+P71 -> 174 | J71: =SUM(J72:J75) -> 70 | K71: =SUM(K72:K75) -> 38 | L71: =SUM(L72:L75) -> 0 | M71: =SUM(M72:M75) -> 36 | N71: =SUM(N72:N75) -> 18 | O71: =SUM(O72:O75) -> 4 | P71: =SUM(P72:P75) -> 8 | Q71: =SUM(Q72:Q75) -> 0 | R71: =SUM(R72:R75) -> 0 | S71: =SUM(S72:S75) -> 0 | T71: =SUM(T72:T75) -> 0 | U71: =SUM(U72:U75) -> 52 | V71: =SUM(V72:V75) -> 128 | W71: =SUM(W72:W75) -> 0 | X71: =SUM(X72:X75) -> 0 | Y71: =SUM(Q71:X71) -> 180
B72: МДК. 05.01 | C72: Освоение профессии рабочих 19205 Тракторист-машинист сельскохозяйственного производства | E72: 6 | G72: =H72+I72 -> 116 | H72: 6 | I72: =J72+K72+L72+M72+N72+O72+P72 -> 110 | J72: 70 | K72: 38 | L72: 0 | M72: 0 | N72: 0 | O72: 0 | P72: 2 | Q72: 0 | R72: 0 | S72: 0 | T72: 0 | U72: 52 | V72: 64 | W72: 0 | X72: 0 | Y72: =SUM(Q72:X72) -> 116
B73: УП.05 | C73: Учебная практика | E73: 6 | G73: =H73+I73 -> 36 | H73: 0 | I73: =J73+K73+L73+M73+N73+O73+P73 -> 36 | J73: 0 | K73: 0 | L73: 0 | M73: 36 | N73: 0 | O73: 0 | P73: 0 | Q73: 0 | R73: 0 | S73: 0 | T73: 0 | U73: 0 | V73: 36 | W73: 0 | X73: 0 | Y73: =SUM(Q73:X73) -> 36
B74: ПП.05 | C74: Производственная практика | G74: =H74+I74 -> 18 | H74: 0 | I74: =J74+K74+L74+M74+N74+O74+P74 -> 18 | J74: 0 | K74: 0 | L74: 0 | M74: 0 | N74: 18 | O74: 0 | P74: 0 | Q74: 0 | R74: 0 | S74: 0 | T74: 0 | U74: 0 | V74: 18 | W74: 0 | X74: 0 | Y74: =SUM(Q74:X74) -> 18
B75: ПМ.05.ЭК | C75: Квалификационный экзамен | F75: 6 | G75: =H75+I75 -> 10 | I75: =J75+K75+L75+M75+N75+O75+P75 -> 10 | O75: 4 | P75: 6 | V75: 10 | Y75: =SUM(Q75:X75) -> 10
B76: ПДП | C76: Преддипломная практика | G76: =H76+I76 -> 144 | I76: =J76+K76+L76+M76+N76+O76+P76 -> 144 | N76: 144 | X76: 144 | Y76: =SUM(Q76:X76) -> 144
B77: ГИА | C77: Государственная итоговая аттестация | G77: =H77+I77 -> 216 | I77: =J77+K77+L77+M77+N77+O77+P77 -> 216 | P77: 216 | X77: 216 | Y77: =SUM(Q77:X77) -> 216
B78: Итого | D78: =SUM(D9,D26,D34,D48) -> 5 | E78: =SUM(E9,E26,E34,E48) -> 33 | F78: =SUM(F9,F26,F34,F48) -> 19 | G78: =SUM(G9,G26,G34,G48) -> 5940 | H78: =SUM(H9,H26,H34,H48) -> 74 | I78: =SUM(I9,I26,I34,I48) -> 5866 | J78: =SUM(J9,J26,J34,J48) -> 2115 | K78: =SUM(K9,K26,K34,K48) -> 2129 | L78: =SUM(L9,L26,L34,L48) -> 40 | M78: =SUM(M9,M26,M34,M48) -> 504 | N78: =SUM(N9,N26,N34,N48) -> 648 | O78: =SUM(O9,O26,O34,O48) -> 54 | P78: =SUM(P9,P26,P34,P48) -> 376 | Q78: =SUM(Q9,Q26,Q34,Q48) -> 612 | R78: =SUM(R9,R26,R34,R48) -> 864 | S78: =SUM(S9,S26,S34,S48) -> 612 | T78: =SUM(T9,T26,T34,T48) -> 864 | U78: =SUM(U9,U26,U34,U48) -> 612 | V78: =SUM(V9,V26,V34,V48) -> 864 | W78: =SUM(W9,W26,W34,W48) -> 612 | X78: =SUM(X9,X26,X34,X48) -> 900 | Y78: =SUM(Q78:X78) -> 5940
Y79: =SUM(Q79:X79) -> 0
J80: часов дисциплин и МДК | P80: =SUM(Q80:X80) -> 4860 | Q80: =Q78-Q81-Q82-Q83 -> 612 | R80: =R78-R81-R82-R83 -> 864 | S80: =S78-S81-S82-S83 -> 612 | T80: =T78-T81-T82-T83 -> 576 | U80: =U78-U81-U82-U83 -> 612 | V80: =V78-V81-V82-V83 -> 540 | W80: =W78-W81-W82-W83 -> 540 | X80: =X78-X81-X82-X83 -> 504 | Y80: =SUM(Q80:X80) -> 4860
B81: Государственная (итоговая) атестация | J81: часов учебной практики | P81: =SUM(Q81:X81) -> 432 | T81: =SUM(T52,T57,T63,T68,T73) -> 72 | U81: =SUM(U52,U57,U63,U68,U73) -> 0 | V81: =SUM(V52,V57,V63,V68,V73) -> 180 | W81: =SUM(W52,W57,W63,W68,W73) -> 72 | X81: =SUM(X52,X57,X63,X68,X73) -> 108 | Y81: =SUM(Q81:X81) -> 432
B82: 1.1. Дипломный проект (работа) | J82: часов производств. практики | P82: =SUM(Q82:X82) -> 504 | T82: =SUM(T53,T58,T64,T69,T74) -> 216 | U82: =SUM(U53,U58,U64,U69,U74) -> 0 | V82: =SUM(V53,V58,V64,V69,V74) -> 144 | W82: =SUM(W53,W58,W64,W69,W74) -> 0 | X82: =SUM(X53,X58,X64,X69,X74) -> 144 | Y82: =SUM(Q82:X82) -> 504
B83: Выполнение дипломного проекта (работы) с 18.05 по 14.06 (всего 4 нед.) | I83: всего | J83: часов преддиплом. практики | P83: =SUM(Q83:X83) -> 144 | X83: 144 | Y83: =SUM(Q83:X83) -> 144
B84: Защита дипломного проекта (работы) с 15.06 по 28.06 (всего 2 нед.) | J84: кол.-во экзаменов | P84: =SUM(Q84:X84) -> 19 | Q84: 1 | R84: 5 | S84: 0 | T84: 2 | U84: 4 | V84: 5 | W84: 1 | X84: 1 | Y84: =SUM(Q84:X84) -> 19
B85: 1.2. Государственный экзамен - Выполнение демонстрационного экзамена | J85: кол.-во дифф. зачетов | P85: =SUM(Q85:X85) -> 33 | Q85: 1 | R85: 8 | S85: 2 | T85: 4 | U85: 2 | V85: 8 | W85: 2 | X85: 6 | Y85: =SUM(Q85:X85) -> 33
J86: кол.-во зачетов | P86: =SUM(Q86:X86) -> 5 | Q86: 0 | R86: 1 | S86: 1 | T86: 1 | U86: 1 | V86: 1 | W86: 0 | X86: 0 | Y86: =SUM(Q86:X86) -> 5
